[Event "SWE-ch -50 2018"]
[Site "Ronneby"]
[Date "2018.07.03"]
[Round "4"]
[White "Gamback, Bjorn"]
[Black "Cramling, Dan"]
[Result "0-1"]
[ECO "B22"]
[WhiteElo "2108"]
[BlackElo "2355"]
[Annotator "NA"]
[PlyCount "100"]
[EventDate "2018.06.30"]
[EventType "tourn"]
[EventCountry "SWE"]
[SourceTitle "playchess.com"]
[Source "ChessBase"]
[SourceQuality "1"]
[TimeControl "40/5400+30:1800+30"]

1. e4 {[%emt 0:03:32]} c5 {[%emt 0:00:00]} 2. Nf3 {[%emt 0:00:05]} e6 {[%emt 0:00:00]} 3. c3 {[%emt 0:01:26]} Nf6 {[%emt 0:00:55]} 4. e5 Nd5 5. d4 {[%emt 0:00:57]} cxd4 {[%emt 0:00:34]} 6. cxd4 {[%emt 0:00:29]} d6 {[%emt 0:00:56]} 7. a3 {[%emt 0:03:34]} Bd7 {[%emt 0:02:13]} 8. Bd3 {[%emt 0:01:10]} Bc6 {[%emt 0:00:16]} 9. O-O {[%emt 0:00:28]} Nd7 {[%emt 0:01:10]} 10. Re1 {[%emt 0:03:29]} Qc7 {[%emt 0:13:51]} 11. b4 {[%emt 0:01:47]} a6 $11 {[%emt 0:02:24]} 12. Nbd2 {[%emt 0:18:22]} Nc3 {[%emt 0:27:32]} 13. Qb3 {[%emt 0:05:32]} Bd5 {[%emt 0:04:58]} 14. Bc4 {[%emt 0:02:19]} Bxc4 {[%emt 0:04:53]} 15. Nxc4 {[%emt 0:01:26]} Rc8 {[%emt 0:02:04]} 16. Qxc3 {[%emt 0:18:29]} d5 {[%emt 0:02:11]} 17. Nd6+ {[%emt 0:03:12]} Bxd6 {[%emt 0:00:08]} 18. Qd3 {[%emt 0:07:58]} Be7 {[%emt 0:01:03]} 19. Bg5 {[%emt 0:00:52]} Bxg5 {[%emt 0:06:43]} 20. Nxg5 {[%emt 0:00:07]} h6 {[%emt 0:01:23]} 21. Nf3 {[%emt 0:03:40]} O-O {[%emt 0:00:19]} 22. Qb1 {[%emt 0:05:13]} Nb6 {[%emt 0:02:00]} 23. Nd2 {[%emt 0:01:26]} Qc6 {[%emt 0:04:53]} 24. Nb3 {[%emt 0:01:31]} Nc4 {[%emt 0:00:20]} 25. a4 {[%emt 0:00:33]} b6 {[%emt 0:01:25]} 26. a5 {[%emt 0:01:00]} Rb8 {[%emt 0:00:14]} 27. Qa2 {[%emt 0:02:53]} Rb7 {[%emt 0:07:42]} 28. Rec1 {[%emt 0:02:52]} f6 {[%emt 0:05:23]} 29. axb6 {[%emt 0:01:58]} Qxb6 {[%emt 0:00:27]} 30. exf6 {[%emt 0:01:29]} Rxf6 {[%emt 0:00:32]} 31. Qxa6 {[%emt 0:04:38]} Qxb4 {[%emt 0:00:32]} 32. Nc5 {[%emt 0:00:26]} Rbf7 {[%emt 0:00:16]} 33. Nd3 {[%emt 0:00:50]} Qb3 {[%emt 0:00:41]} 34. Rd1 {[%emt 0:00:34]} Qc3 {[%emt 0:00:33]} 35. Qc8+ {[%emt 0:00:51]} Kh7 {[%emt 0:02:31]} 36. Ne5 {[%emt 0:00:32]} Rf8 {[%emt 0:00:25]} 37. Qc6 {[%emt 0:00:41]} Rxf2 {[%emt 0:02:56]} 38. Qxe6 {[%emt 0:00:46]} Qc2 {[%emt 0:01:02]} 39. Qh3 {[%emt 0:01:02]} Ne3 {[%emt 0:00:33]} 40. Re1 {[%emt 0:01:04]} Rxg2+ {[%emt 0:02:41]} 41. Kh1 {[%emt 0:30:01]} Rff2 {[%emt 0:02:44]} 42. Nf3 {[%emt 0:00:00]} Ng4 {[%emt 0:05:07]} 43. Ng5+ {[%emt 0:00:00]} Kg6 {[%emt 0:00:22]} 44. Ra6+ {[%emt 0:00:00]} Kxg5 {[%emt 0:00:14]} 45. Re5+ {[%emt 0:00:00]} Nxe5 {[%emt 0:00:41]} 46. Qe3+ {[%emt 0:00:00]} Kh4 {[%emt 0:01:56]} 47. Rxh6+ {[%emt 0:00:00]} gxh6 {[%emt 0:00:11]} 48. Qxh6+ {[%emt 0:00:00]} Kg4 {[%emt 0:00:11]} 49. Qh3+ {[%emt 0:00:00]} Kxh3 {[%emt 0:00:13]} 50. dxe5 {[%emt 0:00:00]} Qb1# {[%emt 0:00:37]} 0-1

[Event "SWE-ch -50 2018"]
[Site "Ronneby"]
[Date "2018.07.03"]
[Round "4"]
[White "Moborn, Anders"]
[Black "Nilsson, Patrik"]
[Result "1/2-1/2"]
[ECO "E94"]
[WhiteElo "2045"]
[BlackElo "1968"]
[Annotator "NA"]
[PlyCount "77"]
[EventDate "2018.06.30"]
[EventType "tourn"]
[EventCountry "SWE"]
[SourceTitle "playchess.com"]
[Source "ChessBase"]
[SourceQuality "1"]
[TimeControl "40/5400+30:1800+30"]

{[%evp 8,77,43,41,54,29,39,38,34,40,34,0,0,0,24,19,34,0,5,5,60,32,45,31,35,8,25,32767,40,15,23,26,19,16,14,10,19,0,14,6,0,9,10,14,18,7,32767,-8,32767,32767,32767,32767,32767,-5,32767,-2,32767,32767,32767,32767,0,0,16,0,2,0,8,32767,32767,7,32767,12]} 1. d4 {[%emt 0:00:00]} Nf6 {[%emt 0:00:00]} 2. c4 {[%emt 0:00:00]} g6 {[%emt 0:00:00]} 3. Nc3 {[%emt 0:00:00]} Bg7 {[%emt 0:00:03]} 4. e4 {[%emt 0:00:04]} d6 {[%emt 0:00:12]} 5. Nf3 {[%emt 0:00:09]} O-O {[%emt 0:00:13]} 6. Be2 {[%emt 0:00:12]} e5 {[%emt 0:00:12]} 7. O-O {[%emt 0:00:34]} exd4 {[%emt 0:04:59]} 8. Nxd4 {[%emt 0:00:28]} Re8 {[%emt 0:00:09] LiveBook: 1627 Games} 9. Bf3 {[%emt 0:01:41]} Nbd7 {[%emt 0:02:00] E94: Königsindisch (Klassisches System)} 10. Re1 {[%emt 0:00:59]} Nb6 {[%emt 0:03:45]} (10... Nc5 11. Rb1 h6 12. b4 Ne6 13. Nxe6 Bxe6 14. e5 Nd7 15. Bxb7 Rb8 16. Bc6 Bf5 17. Rb3 Rxe5 {1-0 (34) Miladinovic,I (2607)-Tadic,B (2496) Vrsac 2007}) 11. b3 {[%emt 0:04:16]} Bg4 $146 {[%emt 0:07:59]} ({Vorgänger:} 11... c6 12. Bf4 Qe7 13. Qd2 Nfd7 14. Rad1 Ne5 15. Be2 Bd7 16. Bg3 Rad8 17. f4 {1-0 (47) Weglarz,L (2348)-Engel,G (2071) Mecklenburg VP 2001}) 12. Bb2 {[%emt 0:09:48]} Bxf3 {[%emt 0:08:10]} 13. Qxf3 {[%emt 0:04:18]} Nh5 {[%emt 0:03:03]} 14. Rad1 {[%emt 0:01:37]} Nd7 {[%emt 0:05:25]} 15. g3 {[%emt 0:03:43]} Nc5 {[%emt 0:07:06]} 16. Nc2 {[%emt 0:13:42]} Be5 {[%emt 0:04:44]} 17. Qg2 {[%emt 0:03:36]} Nf6 {[%emt 0:07:14]} 18. f3 {[%emt 0:01:59]} a5 {[%emt 0:02:29]} 19. Kh1 {[%emt 0:11:50]} c6 {[%emt 0:10:48]} 20. Qd2 {[%emt 0:01:07]} Qe7 {[%emt 0:03:20]} 21. Re2 {[%emt 0:09:01]} Qf8 {[%emt 0:01:12]} 22. Ba1 {[%emt 0:03:38]} Nfd7 {[%emt 0:04:25]} 23. f4 {[%emt 0:04:32]} Bg7 {[%emt 0:01:11]} 24. Qxd6 {[%emt 0:00:55]} Qxd6 {[%emt 0:04:02]} 25. Rxd6 {[%emt 0:00:46]} Bxc3 {[%emt 0:03:19]} 26. Bxc3 {[%emt 0:00:58]} Rxe4 {[%emt 0:01:27]} 27. Red2 {[%emt 0:07:27]} Nf8 {[%emt 0:01:51]} 28. Rd8 {[%emt 0:00:32]} Rxd8 {[%emt 0:01:06]} 29. Rxd8 {[%emt 0:00:22]} Re2 {[%emt 0:01:08]} 30. Rd2 {[%emt 0:00:46]} Rxd2 {[%emt 0:01:27]} 31. Bxd2 {[%emt 0:00:44]} a4 {[%emt 0:01:18]} 32. b4 {[%emt 0:04:23]} Ne4 {[%emt 0:00:30]} 33. Be1 {[%emt 0:00:05]} Nd7 {[%emt 0:01:26]} 34. Kg2 {[%emt 0:00:35]} c5 {[%emt 0:01:38]} 35. Kf3 {[%emt 0:01:05]} f5 {[%emt 0:00:34]} 36. Ne3 {[%emt 0:03:42]} cxb4 {[%emt 0:02:38]} 37. Bxb4 {[%emt 0:00:42]} Kf7 {[%emt 0:00:40]} 38. g4 $11 {[%emt 0:01:55]} Ke6 {[%emt 0:00:32]} 39. gxf5+ {[%emt 0:03:47]} 1/2-1/2

[Event "SWE-ch -50 2018"]
[Site "Ronneby"]
[Date "2018.07.03"]
[Round "4"]
[White "Franzen, Per-Erik"]
[Black "Gemzell, Ted"]
[Result "1/2-1/2"]
[ECO "A57"]
[WhiteElo "1995"]
[BlackElo "1990"]
[Annotator "NA"]
[PlyCount "83"]
[EventDate "2018.06.30"]
[EventType "tourn"]
[EventCountry "SWE"]
[SourceTitle "playchess.com"]
[Source "ChessBase"]
[SourceQuality "1"]
[TimeControl "40/5400+30:1800+30"]

{[%evp 8,74,83,43,47,56,44,52,35,26,60,46,43,27,38,43,39,23,32767,24,32767,17,25,0,31,11,13,27,56,57,87,55,278,308,304,281,292,319,343,25,39,31,101,72,81,82,89,84,121,32767,32767,32767,32767,47,32767,39,62,32767,32767,0,32767,32767,32767,32767,32767,32767,32767,32767,0]} 1. d4 {[%emt 0:00:00]} Nf6 {[%emt 0:00:54]} 2. Nf3 {[%emt 0:00:05]} g6 {[%emt 0:00:56]} 3. c4 {[%emt 0:00:08]} c5 {[%emt 0:00:18]} 4. d5 {[%emt 0:01:30]} b5 {[%emt 0:00:38]} 5. cxb5 {[%emt 0:00:46]} a6 {[%emt 0:00:08]} 6. b6 {[%emt 0:00:20]} d6 {[%emt 0:00:39]} 7. Nc3 {[%emt 0:00:50]} Nbd7 {[%emt 0:00:18]} 8. a4 {[%emt 0:00:59]} a5 {[%emt 0:02:30]} 9. e4 {[%emt 0:00:18]} Bg7 {[%emt 0:03:26]} 10. Be2 {[%emt 0:08:38]} O-O {[%emt 0:05:05]} 11. O-O {[%emt 0:01:34]} Qxb6 {[%emt 0:01:42]} 12. Nd2 {[%emt 0:06:59] LiveBook: 5 Partien} Ba6 {[%emt 0:04:47]} 13. Bxa6 {[%emt 0:02:57] A57: Benko/Volga Gambit} (13. Nb5 Rfb8 14. Qc2 Qd8 15. Nc4 Nb6 16. Nca3 Ne8 17. Rb1 Nc7 18. b3 Bxb5 19. Nxb5 Na6 20. Bg5 Nb4 {1-0 (44) Cheparinov,I (2618)-Ivanchuk,V (2748) Khanty-Mansiysk 2005 CBM 111 [Stohl,I]}) 13... Qxa6 {[%emt 0:00:51]} 14. Nb5 {[%emt 0:05:18]} Rab8 $146 {[%emt 0:01:30]} ({Predecessor:} 14... Ne8 15. Nc4 Nb6 16. Nca3 Qb7 17. Qc2 Nc8 18. Bd2 Na7 19. Nxa7 Qxa7 20. Nc4 Qc7 {1-0 (51) Antonsen,M (2469)-Pantzar,M (2098) Helsingor 2015}) 15. Qc2 {[%emt 0:07:50]} Rfc8 {[%emt 0:08:54]} 16. Rb1 {[%emt 0:07:26]} c4 {[%emt 0:07:22]} 17. Nxc4 {[%emt 0:08:20]} Nc5 {[%emt 0:00:51] [#]} 18. b3 $1 {[%emt 0:00:56]} Ncxe4 {[%emt 0:03:23]} 19. Re1 {[%emt 0:03:07]} Rxb5 $2 {[%emt 0:08:38]} (19... Nc5 $16) 20. axb5 {[%emt 0:00:47]} Qxb5 {[%emt 0:00:34]} 21. Rxe4 {[%emt 0:01:07]} Nxe4 {[%emt 0:00:27]} 22. Qxe4 {[%emt 0:00:14]} a4 {[%emt 0:03:34] [#]} 23. Be3 $2 {[%emt 0:11:43]} (23. bxa4 $1 $18 Qxa4 24. Qd3) 23... axb3 {[%emt 0:03:09]} 24. Nb6 {[%emt 0:08:31]} Rc7 {[%emt 0:03:10]} (24... Rb8 $11) 25. Qa4 {[%emt 0:04:22]} Qxa4 {[%emt 0:08:14]} 26. Nxa4 {[%emt 0:00:07]} Rb7 {[%emt 0:00:15]} 27. Kf1 {[%emt 0:04:33]} b2 {[%emt 0:02:58]} 28. Ke2 {[%emt 0:02:17]} Rb5 {[%emt 0:00:07]} 29. Nb6 {[%emt 0:02:03]} f5 {[%emt 0:04:01]} 30. f4 {[%emt 0:02:53]} Bc3 {[%emt 0:11:49]} 31. Nc4 {[%emt 0:06:02]} Rxd5 {[%emt 0:02:31]} 32. Nxb2 {[%emt 0:00:20]} Rb5 {[%emt 0:00:20]} 33. Bc1 {[%emt 0:01:04]} e5 {[%emt 0:00:30]} 34. fxe5 {[%emt 0:01:18]} dxe5 {[%emt 0:04:49]} 35. Kd3 {[%emt 0:00:21]} Bd4 {[%emt 0:00:02]} 36. Kc2 {[%emt 0:00:53]} Rc5+ {[%emt 0:00:10]} 37. Kd3 {[%emt 0:01:04]} Rc3+ $11 {[%emt 0:01:12]} 38. Kd2 {[%emt 0:00:02]} Rb3 {[%emt 0:00:03]} 39. Kc2 {[%emt 0:00:32]} Rc3+ {[%emt 0:00:04]} 40. Kd2 {[%emt 0:00:08]} Rb3 {[%emt 0:00:02]} 41. Kc2 {[%emt 0:30:39]} Rc3+ {[%emt 0:29:18]} 42. Kd2 {[%emt 0:00:14]} 1/2-1/2

[Event "SWE-ch -50 2018"]
[Site "Ronneby"]
[Date "2018.07.04"]
[Round "5"]
[White "Cramling, Dan"]
[Black "Rothen, Hakan"]
[Result "1/2-1/2"]
[ECO "E53"]
[WhiteElo "2355"]
[BlackElo "2291"]
[Annotator "NA"]
[PlyCount "47"]
[EventDate "2018.06.30"]
[EventType "tourn"]
[EventCountry "SWE"]
[SourceTitle "playchess.com"]
[Source "ChessBase"]
[SourceQuality "1"]
[TimeControl "40/5400+30:1800+30"]

1. d4 {[%emt 0:00:00]} Nf6 {[%emt 0:00:00]} 2. c4 {[%emt 0:00:00]} e6 {[%emt 0:00:00]} 3. Nc3 {[%emt 0:00:04]} Bb4 {[%emt 0:00:00]} 4. e3 {[%emt 0:00:14]} O-O {[%emt 0:00:20]} 5. Bd3 {[%emt 0:03:08]} d5 {[%emt 0:00:31]} 6. Nf3 {[%emt 0:00:26]} c5 {[%emt 0:00:29]} 7. O-O {[%emt 0:00:22]} cxd4 {[%emt 0:00:36]} 8. exd4 {[%emt 0:00:11]} dxc4 {[%emt 0:00:13]} 9. Bxc4 {[%emt 0:00:20]} b6 {[%emt 0:00:47]} 10. Bg5 {[%emt 0:02:12]} Bb7 {[%emt 0:01:20]} 11. Re1 {[%emt 0:01:38]} Nbd7 {[%emt 0:01:15]} 12. Rc1 {[%emt 0:00:52]} Rc8 {[%emt 0:11:19]} 13. Bd3 {[%emt 0:10:33]} Be7 {[%emt 0:08:21]} 14. Qe2 {[%emt 0:16:24]} Nd5 {[%emt 0:13:35]} 15. Qe4 {[%emt 0:09:27]} g6 {[%emt 0:00:51]} 16. Qh4 {[%emt 0:00:51]} h5 {[%emt 0:08:02]} 17. Qg3 {[%emt 0:08:48]} Bxg5 {[%emt 0:03:50]} 18. Nxg5 {[%emt 0:00:38]} Qf6 {[%emt 0:00:37]} 19. Bb5 {[%emt 0:06:24]} Nxc3 {[%emt 0:03:22]} 20. bxc3 {[%emt 0:00:15]} Rfd8 {[%emt 0:00:46]} 21. Bd3 {[%emt 0:03:56]} Nf8 {[%emt 0:00:46]} 22. Be4 {[%emt 0:01:44]} Bxe4 {[%emt 0:00:10]} 23. Nxe4 {[%emt 0:00:07]} Qe7 {[%emt 0:04:11]} 24. Qf4 {[%emt 0:01:00]} 1/2-1/2

[Event "SWE-ch -50 2018"]
[Site "Ronneby"]
[Date "2018.07.04"]
[Round "5"]
[White "Winfridsson, Hakan"]
[Black "Wedin, Svante"]
[Result "1/2-1/2"]
[ECO "B27"]
[WhiteElo "2007"]
[BlackElo "1992"]
[Annotator "NA"]
[PlyCount "53"]
[EventDate "2018.06.30"]
[EventType "tourn"]
[EventCountry "SWE"]
[SourceTitle "playchess.com"]
[Source "ChessBase"]
[SourceQuality "1"]
[TimeControl "40/5400+30:1800+30"]

1. e4 {[%emt 0:00:00]} c5 {[%emt 0:00:00]} 2. Nf3 {[%emt 0:00:00]} g6 {[%emt 0:00:00]} 3. d4 {[%emt 0:00:46]} cxd4 {[%emt 0:00:00]} 4. Nxd4 {[%emt 0:00:17]} Nf6 {[%emt 0:00:11]} 5. Nc3 {[%emt 0:00:15]} Nc6 {[%emt 0:00:38]} 6. Be3 {[%emt 0:00:16]} Bg7 {[%emt 0:00:06]} 7. Be2 {[%emt 0:02:08]} O-O {[%emt 0:02:16]} 8. f4 {[%emt 0:00:45]} d5 {[%emt 0:02:10]} 9. e5 {[%emt 0:05:26]} Ne8 {[%emt 0:02:54]} 10. O-O {[%emt 0:00:49]} Nc7 {[%emt 0:02:11]} 11. Bf3 {[%emt 0:03:04]} a6 {[%emt 0:02:05]} 12. Qd2 {[%emt 0:05:46]} e6 {[%emt 0:05:58]} 13. Nxc6 {[%emt 0:02:57]} bxc6 {[%emt 0:00:18]} 14. Bc5 {[%emt 0:00:12]} Re8 {[%emt 0:00:16]} 15. a4 {[%emt 0:00:08]} a5 {[%emt 0:01:39]} 16. Bb6 {[%emt 0:01:45]} Bd7 {[%emt 0:04:10]} 17. Ne2 {[%emt 0:03:20]} Qb8 {[%emt 0:02:22]} 18. Qd4 {[%emt 0:02:27]} Bf8 {[%emt 0:05:06]} 19. Nc1 {[%emt 0:01:56]} Na6 {[%emt 0:08:31]} 20. Nd3 {[%emt 0:02:27]} c5 {[%emt 0:06:03]} 21. Bxc5 {[%emt 0:01:58]} Nxc5 {[%emt 0:00:37]} 22. Nxc5 {[%emt 0:00:15]} Bxc5 {[%emt 0:00:13]} 23. Qxc5 {[%emt 0:00:05]} Rc8 {[%emt 0:03:10]} 24. Qe7 {[%emt 0:02:16]} Ra7 {[%emt 0:00:28]} 25. h4 {[%emt 0:01:11]} Rxc2 {[%emt 0:05:10]} 26. Qf6 {[%emt 0:00:40]} Qf8 {[%emt 0:02:38]} 27. b3 {[%emt 0:00:49]} 1/2-1/2

[Event "SWE-ch -50 2018"]
[Site "Ronneby"]
[Date "2018.07.04"]
[Round "5"]
[White "Franzen, Per-Erik"]
[Black "Gamback, Bjorn"]
[Result "1/2-1/2"]
[ECO "E11"]
[WhiteElo "1995"]
[BlackElo "2108"]
[Annotator "NA"]
[PlyCount "45"]
[EventDate "2018.06.30"]
[EventType "tourn"]
[EventCountry "SWE"]
[SourceTitle "playchess.com"]
[Source "ChessBase"]
[SourceQuality "1"]
[TimeControl "40/5400+30:1800+30"]

1. d4 {[%emt 0:00:00]} Nf6 {[%emt 0:02:44]} 2. Nf3 {[%emt 0:00:00]} e6 {[%emt 0:00:21]} 3. c4 {[%emt 0:00:19]} Bb4+ {[%emt 0:00:58]} 4. Bd2 {[%emt 0:00:24]} c5 {[%emt 0:00:25]} 5. Bxb4 {[%emt 0:03:31]} cxb4 {[%emt 0:00:20]} 6. Nbd2 {[%emt 0:02:08]} d5 {[%emt 0:01:14]} 7. e3 {[%emt 0:01:13]} O-O {[%emt 0:00:32]} 8. Bd3 {[%emt 0:00:58]} b6 {[%emt 0:01:53]} 9. cxd5 {[%emt 0:04:02]} exd5 {[%emt 0:00:31]} 10. Rc1 {[%emt 0:07:57]} a5 {[%emt 0:08:19]} 11. Ne5 {[%emt 0:04:00]} Ba6 {[%emt 0:06:16]} 12. Qe2 {[%emt 0:03:25]} Bxd3 {[%emt 0:06:46]} 13. Qxd3 {[%emt 0:03:49]} Ra7 {[%emt 0:06:29]} 14. O-O {[%emt 0:04:00]} Rc7 {[%emt 0:01:17]} 15. Rc2 {[%emt 0:03:13]} Qd6 {[%emt 0:01:18]} 16. Rfc1 {[%emt 0:01:14]} Rfc8 {[%emt 0:00:22]} 17. Qf5 {[%emt 0:03:45]} Rxc2 {[%emt 0:04:45]} 18. Rxc2 {[%emt 0:09:21]} Rc7 {[%emt 0:01:10]} 19. Qc8+ {[%emt 0:07:01]} Rxc8 {[%emt 0:00:20]} 20. Rxc8+ {[%emt 0:00:04]} Qf8 {[%emt 0:00:12]} 21. Rxf8+ {[%emt 0:00:04]} Kxf8 {[%emt 0:00:07]} 22. f3 {[%emt 0:00:44]} Ke7 {[%emt 0:02:23]} 23. Kf2 1/2-1/2

[Event "SWE-ch -50 2018"]
[Site "Ronneby"]
[Date "2018.07.04"]
[Round "5"]
[White "Gemzell, Ted"]
[Black "Andersson, Erik"]
[Result "1-0"]
[ECO "A47"]
[WhiteElo "1990"]
[BlackElo "1656"]
[Annotator "NA"]
[PlyCount "105"]
[EventDate "2018.06.30"]
[EventType "tourn"]
[EventCountry "SWE"]
[SourceTitle "playchess.com"]
[Source "ChessBase"]
[SourceQuality "1"]
[TimeControl "40/5400+30:1800+30"]

1. d4 {[%emt 0:00:00]} Nf6 {[%emt 0:00:00]} 2. Nf3 {[%emt 0:00:00]} b6 {[%emt 0:00:12]} 3. Bf4 {[%emt 0:00:00]} Bb7 {[%emt 0:00:26]} 4. e3 {[%emt 0:00:00]} d6 {[%emt 0:00:21]} 5. Nbd2 {[%emt 0:00:43]} Nbd7 {[%emt 0:00:29]} 6. c3 {[%emt 0:00:34]} g6 {[%emt 0:01:33]} 7. Bd3 {[%emt 0:01:20]} c5 {[%emt 0:03:28]} 8. h4 {[%emt 0:01:09]} h5 {[%emt 0:08:35]} 9. Qc2 {[%emt 0:02:15]} Rg8 {[%emt 0:05:45]} 10. Ng5 {[%emt 0:02:55]} Qc8 {[%emt 0:11:51]} 11. Ndf3 {[%emt 0:04:42]} c4 {[%emt 0:05:32]} 12. Be2 {[%emt 0:02:46]} Qc6 {[%emt 0:09:39]} 13. O-O-O {[%emt 0:03:57]} O-O-O {[%emt 0:07:57]} 14. Nxf7 {[%emt 0:02:12]} Re8 {[%emt 0:02:19]} 15. N3g5 {[%emt 0:10:07]} Ng4 {[%emt 0:11:51]} 16. d5 {[%emt 0:05:31]} Qb5 {[%emt 0:01:36]} 17. Bxg4 {[%emt 0:27:33]} hxg4 {[%emt 0:00:03]} 18. e4 {[%emt 0:00:19]} Nc5 {[%emt 0:01:32]} 19. Be3 {[%emt 0:00:29]} Nd3+ {[%emt 0:01:40]} 20. Kb1 {[%emt 0:01:21]} Bg7 {[%emt 0:04:55]} 21. Ne6 {[%emt 0:00:52]} Bf6 {[%emt 0:00:55]} 22. Nd4 {[%emt 0:01:32]} Qd7 {[%emt 0:01:41]} 23. Ng5 {[%emt 0:00:54]} Qd8 {[%emt 0:05:40]} 24. Nge6 {[%emt 0:01:17]} Qd7 {[%emt 0:00:01]} 25. Qe2 {[%emt 0:00:44]} Ne5 {[%emt 0:00:42]} 26. Bf4 {[%emt 0:03:09]} Nd3 {[%emt 0:00:49]} 27. Bg3 {[%emt 0:03:27]} g5 {[%emt 0:02:12]} 28. h5 {[%emt 0:01:07]} Bxd4 {[%emt 0:03:25]} 29. Nxd4 {[%emt 0:03:11]} Ref8 {[%emt 0:00:11]} 30. Ne6 {[%emt 0:00:18]} Rf6 {[%emt 0:00:23]} 31. h6 {[%emt 0:00:08]} Rxe6 {[%emt 0:03:59]} 32. dxe6 {[%emt 0:01:38]} Qxe6 {[%emt 0:00:07]} 33. f3 {[%emt 0:00:14]} gxf3 {[%emt 0:01:03]} 34. gxf3 {[%emt 0:00:08]} g4 {[%emt 0:00:42]} 35. h7 {[%emt 0:00:21]} Rh8 {[%emt 0:00:05]} 36. Rh4 {[%emt 0:03:19]} d5 {[%emt 0:01:15]} 37. Rxd3 {[%emt 0:04:42]} cxd3 {[%emt 0:00:18]} 38. Qxd3 {[%emt 0:00:05]} dxe4 {[%emt 0:00:17]} 39. Qd4 {[%emt 0:00:06]} Qf6 {[%emt 0:01:38]} 40. Qc4+ {[%emt 0:08:11]} Kd7 {[%emt 0:00:34]} 41. Qc7+ {[%emt 0:30:08]} Ke6 {[%emt 0:30:53]} 42. Qxb7 {[%emt 0:00:35]} Qxf3 {[%emt 0:02:01]} 43. Qc6+ {[%emt 0:01:16]} Kf7 {[%emt 0:01:26]} 44. Qd5+ {[%emt 0:01:00]} Kf8 {[%emt 0:00:00]} 45. Be1 {[%emt 0:00:00]} Qe2 {[%emt 0:00:00]} 46. Qd2 {[%emt 0:00:00]} Qf3 {[%emt 0:00:00]} 47. Bf2 {[%emt 0:00:00]} e5 {[%emt 0:00:00]} 48. Rh6 {[%emt 0:00:00]} g3 {[%emt 0:00:00]} 49. Be3 {[%emt 0:00:00]} g2 {[%emt 0:00:00]} 50. Qd6+ {[%emt 0:00:00]} Kf7 {[%emt 0:00:00]} 51. Qe6+ {[%emt 0:00:00]} Kg7 {[%emt 0:00:00]} 52. Qxe5+ {[%emt 0:00:00]} Kf7 {[%emt 0:00:00]} 53. Qe6+ {[%emt 0:00:00]} 1-0

[Event "SWE-ch -50 2018"]
[Site "Ronneby"]
[Date "2018.07.05"]
[Round "6"]
[White "Rothen, Hakan"]
[Black "Franzen, Per-Erik"]
[Result "1-0"]
[ECO "D35"]
[WhiteElo "2291"]
[BlackElo "1995"]
[Annotator "NA"]
[PlyCount "53"]
[EventDate "2018.06.30"]
[EventType "tourn"]
[EventCountry "SWE"]
[SourceTitle "playchess.com"]
[Source "ChessBase"]
[SourceQuality "1"]
[TimeControl "40/5400+30:1800+30"]

{[%evp 9,43,18,56,32767,8,5,61,60,51,11,42,22,55,17,35,8,35,-22,67,47,63,56,32767,68,32767,32767,78,32767,95,96,106,90,32767,32767,340,307]} 1. d4 {[%emt 0:00:00]} Nf6 {[%emt 0:00:00]} 2. c4 {[%emt 0:00:00]} e6 {[%emt 0:00:00]} 3. Nc3 {[%emt 0:00:05]} d5 {[%emt 0:01:07]} 4. cxd5 {[%emt 0:00:11]} Nxd5 {[%emt 0:00:55]} 5. Nf3 {[%emt 0:01:11]} Be7 {[%emt 0:03:16] LiveBook: 10 Partien} 6. Bd2 {[%emt 0:02:40]} O-O {[%emt 0:02:14]} 7. e4 {[%emt 0:00:41]} Nb6 {[%emt 0:01:22]} 8. Be2 {[%emt 0:01:40]} c5 {[%emt 0:03:37]} 9. Be3 {[%emt 0:01:32]} cxd4 {[%emt 0:01:07]} 10. Nxd4 {[%emt 0:00:28]} Nc6 {[%emt 0:06:32]} 11. O-O {[%emt 0:03:02]} Bd7 {[%emt 0:05:31]} 12. Nb3 {[%emt 0:11:09]} Ne5 {[%emt 0:10:48]} 13. Na5 {[%emt 0:04:58]} Bb4 {[%emt 0:11:01]} (13... Na4 $11 14. Nxa4 Qxa5) 14. Qd4 {[%emt 0:00:17]} Bxa5 {[%emt 0:02:14]} 15. Qxe5 {[%emt 0:03:46]} Bxc3 {[%emt 0:03:53]} 16. Qxc3 {[%emt 0:00:24]} Rc8 {[%emt 0:10:38]} 17. Qb4 {[%emt 0:00:44]} Bc6 {[%emt 0:03:28]} 18. f3 {[%emt 0:01:37]} Qc7 {[%emt 0:03:04]} 19. Rfc1 {[%emt 0:02:19]} Rfd8 {[%emt 0:01:22]} 20. a4 {[%emt 0:00:38]} Qd6 {[%emt 0:06:29]} 21. Qxd6 {[%emt 0:01:43]} Rxd6 {[%emt 0:00:06]} 22. a5 $18 {[%emt 0:00:19]} Nd7 {[%emt 0:01:19]} 23. Rc2 {[%emt 0:00:47]} a6 {[%emt 0:02:39]} 24. Rac1 {[%emt 0:00:35]} e5 {[%emt 0:04:26]} 25. b4 {[%emt 0:01:42]} Re8 {[%emt 0:01:26]} 26. Bxa6 {[%emt 0:05:23]} Nb8 {[%emt 0:04:45]} 27. Be2 1-0